[Event "Frauenbundesliga 2024-25"]
[Site "Germany"]
[Date "2024.11.16"]
[Round "1.4"]
[White "Köhler, Inken"]
[Black "Exler, Veronika"]
[Result "1-0"]
[Annotator "RC"]
[ECO "A18"]
[WhiteElo "2043"]
[BlackElo "2169"]
[PlyCount "59"]
[EventDate "2024.11.06"]
[EventType "team-tourn"]
[EventCountry "GER"]
[SourceTitle "playchess.com"]
[Source "ChessBase"]
[SourceQuality "1"]
[TimeControl "40/5400+30:1800+30"]

1. c4 {[%emt 1:31:00]} Nf6 {[%emt 1:31:00]} 2. Nc3 {[%emt 0:00:30]} e6 {[%emt 0:00:30]} 3. e4 {[%emt 0:00:30]} d5 {[%emt 0:00:30]} 4. e5 {[%emt 0:00:30]} d4 {[%emt 0:00:30]} 5. exf6 {[%emt 0:00:30]} dxc3 {[%emt 0:00:30]} 6. bxc3 {[%emt 0:00:30]} Qxf6 {[%emt 0:00:30]} 7. Nf3 {[%emt 0:00:30]} e5 {[%emt 0:00:30]} 8. Bd3 {[%emt 0:00:30]} Bd6 {[%emt 0:00:30]} 9. O-O {[%emt 0:00:30]} Nd7 {[%emt 0:00:30]} 10. Bc2 {[%emt 0:00:30]} O-O {[%emt 0:00:30]} 11. Re1 {[%emt 0:00:30]} h6 {[%emt 0:00:30]} 12. d4 {[%emt 0:00:30]} exd4 {[%emt 0:00:30]} 13. cxd4 {[%emt 0:00:30]} Rd8 {[%emt 0:00:30]} 14. Be3 {[%emt 0:00:30]} Nf8 {[%emt 0:00:30]} 15. d5 {[%emt 0:00:30]} Bf5 {[%emt 0:00:30]} 16. Bd4 {[%emt 0:00:30]} Bxc2 {[%emt 0:00:30]} 17. Qxc2 {[%emt 0:00:30]} Qg6 {[%emt 0:00:30]} 18. Qb2 {[%emt 0:00:30]} b6 {[%emt 0:00:30]} 19. Ne5 {[%emt 0:00:30]} Bxe5 {[%emt 0:00:30]} 20. Bxe5 {[%emt 0:00:30]} Rd7 {[%emt 0:00:30]} 21. Re3 {[%emt 0:00:30]} Qh7 {[%emt 0:00:30]} 22. Rae1 {[%emt 0:00:30]} Re8 {[%emt 0:00:30]} 23. h4 {[%emt 0:00:30]} f6 {[%emt 0:00:30]} 24. Bg3 {[%emt 0:00:30]} Rxe3 {[%emt 0:00:30]} 25. Rxe3 {[%emt 0:00:30]} Kf7 {[%emt 0:00:30]} 26. Qe2 {[%emt 0:00:30]} Qb1+ {[%emt 0:00:30]} 27. Kh2 {[%emt 0:00:30]} Qf5 {[%emt 0:00:30]} 28. Re8 {[%emt 0:00:30]} h5 {[%emt 0:00:30]} 29. Rc8 {[%emt 0:00:30]} Ng6 {[%emt 0:00:30]} 30. Qe8# {[%emt 0:00:30]} 1-0

[Event "Frauenbundesliga 2024-25"]
[Site "Germany"]
[Date "2024.11.16"]
[Round "1.5"]
[White "Schloffer, Jasmin-Denise"]
[Black "Brandt, Carina"]
[Result "1/2-1/2"]
[Annotator "RC"]
[ECO "E73"]
[WhiteElo "2168"]
[BlackElo "2050"]
[PlyCount "81"]
[EventDate "2024.11.06"]
[EventType "team-tourn"]
[EventCountry "GER"]
[SourceTitle "playchess.com"]
[Source "ChessBase"]
[SourceQuality "1"]
[TimeControl "40/5400+30:1800+30"]

1. d4 {[%emt 1:31:00]} Nf6 2. c4 {[%emt 0:00:30]} g6 {[%emt 1:31:30]} 3. Nc3 {[%emt 0:00:30]} Bg7 {[%emt 0:00:30]} 4. e4 {[%emt 0:00:30]} d6 {[%emt 0:00:30]} 5. Be2 {[%emt 0:00:30]} O-O {[%emt 0:00:30]} 6. Be3 {[%emt 0:00:30]} Na6 7. g4 {[%emt 0:00:30]} c5 8. d5 {[%emt 0:00:30]} Nc7 9. h4 {[%emt 0:00:30]} Re8 10. g5 {[%emt 0:00:30]} Nd7 11. h5 {[%emt 0:00:30]} Nf8 12. Qc2 {[%emt 0:00:30]} e6 {[%emt 0:03:30]} 13. hxg6 {[%emt 0:00:30]} fxg6 {[%emt 0:00:30]} 14. O-O-O {[%emt 0:00:30]} a6 {[%emt 0:00:30]} 15. Nf3 {[%emt 0:00:30]} b5 {[%emt 0:00:30]} 16. e5 {[%emt 0:00:30]} exd5 {[%emt 0:00:30]} 17. Nxd5 {[%emt 0:00:30]} Nxd5 {[%emt 0:00:30]} 18. Rxd5 {[%emt 0:00:30]} Qa5 {[%emt 0:00:30]} 19. Rxd6 {[%emt 0:00:30]} Qxa2 {[%emt 0:00:30]} 20. Qb1 {[%emt 0:00:30]} Qxb1+ {[%emt 0:00:30]} 21. Kxb1 {[%emt 0:00:30]} Bb7 {[%emt 0:00:30]} 22. Rhd1 {[%emt 0:00:30]} Be4+ {[%emt 0:00:30]} 23. Kc1 {[%emt 0:00:30]} Ne6 {[%emt 0:00:30]} 24. Nd2 {[%emt 0:00:30]} Bf5 {[%emt 0:00:30]} 25. f4 {[%emt 0:00:30]} Bf8 {[%emt 0:00:30]} 26. Rb6 {[%emt 0:00:30]} Reb8 {[%emt 0:00:30]} 27. Rxb8 {[%emt 0:00:30]} Rxb8 {[%emt 0:00:30]} 28. Nb3 {[%emt 0:00:30]} h6 {[%emt 0:00:30]} 29. Rd5 {[%emt 0:00:30]} hxg5 {[%emt 0:00:30]} 30. fxg5 {[%emt 0:00:30]} Be7 {[%emt 0:00:30]} 31. Nxc5 {[%emt 0:00:30]} Nxc5 {[%emt 0:00:30]} 32. Bxc5 {[%emt 0:00:30]} Bxg5+ {[%emt 0:00:30]} 33. Kd1 {[%emt 0:00:30]} bxc4 {[%emt 0:00:30]} 34. Bxc4 {[%emt 0:00:30]} Be6 {[%emt 0:00:30]} 35. Rd4 {[%emt 0:00:30]} Bxc4 {[%emt 0:00:30]} 36. Rxc4 {[%emt 0:00:30]} Rxb2 {[%emt 0:00:30]} 37. Rg4 {[%emt 0:00:30]} Rd2+ {[%emt 0:00:30]} 38. Ke1 {[%emt 0:00:30]} Rd5 {[%emt 0:00:30]} 39. Rxg5 {[%emt 0:00:30]} Rxc5 {[%emt 0:00:30]} 40. Rxg6+ {[%emt 0:00:30]} Kf7 {[%emt 0:00:30]} 41. Rxa6 {[%emt 0:30:30]} 1/2-1/2

[Event "Frauenbundesliga 2024-25"]
[Site "Germany"]
[Date "2024.11.16"]
[Round "1.5"]
[White "Endress, Anna"]
[Black "Milliet, Sophie"]
[Result "1/2-1/2"]
[Annotator "TA"]
[ECO "B26"]
[WhiteElo "2096"]
[BlackElo "2366"]
[PlyCount "111"]
[EventDate "2024.11.06"]
[EventType "team-tourn"]
[EventCountry "GER"]
[SourceTitle "playchess.com"]
[Source "ChessBase"]
[SourceQuality "1"]
[TimeControl "40/5400+30:1800+30"]

{[%evp 30,111,27,18,35,0,0,4,9,12,9,10,31,17,10,17,22,6,19,0,-9,-36,-35,-54,0,0,0,0,0,0,0,0,0,-386,0,0,0,-23,-9,-24,-8,-8,-8,-8,-8,-12,-9,-16,-8,-16,-10,-31,-27,-39,-27,-63,-33,-362,-83,-83,-83,-83,-83,-83,-78,-78,-14,-85,0,0,0,0,0,0,0,0,0,0,0,0,0,0,0,0]} 1. e4 {[%emt 0:00:05]} c5 {[%emt 0:00:06]} 2. Nc3 {[%emt 0:00:48]} Nc6 {[%emt 0:00:06]} 3. g3 {[%emt 0:01:36]} g6 {[%emt 0:00:06]} 4. Bg2 {[%emt 0:00:04]} Bg7 {[%emt 0:00:04]} 5. d3 {[%emt 0:00:30]} Rb8 {[%emt 0:00:10]} 6. Be3 {[%emt 0:03:22]} b5 {[%emt 0:02:16][%cal Bb7b5,Bb5b4][%mdl 32]} 7. Qd2 {[%emt 0:06:23]} b4 {[%emt 0:02:00]} 8. Nd1 {[%emt 0:01:05]} d6 {[%emt 0:00:15]} 9. Ne2 {[%emt 0:08:04]} Nd4 {[%emt 0:04:59]} 10. O-O {[%emt 0:03:45]} e6 {[%emt 0:20:25]} 11. Nc1 {[%emt 0:10:10]} Ne7 {[%emt 0:00:48]} 12. c3 {[%emt 0:01:01]} bxc3 {[%emt 0:00:08]} 13. bxc3 {[%emt 0:00:23]} Ndc6 {[%emt 0:00:15]} 14. Bh6 {[%emt 0:02:50]} O-O {[%emt 0:00:40]} 15. Bxg7 {[%emt 0:00:09]} Kxg7 {[%emt 0:00:03]} 16. Ne3 {[%emt 0:04:29]} a5 {[%emt 0:15:52]} 17. d4 {[%emt 0:12:42]} cxd4 {[%emt 0:12:10]} 18. cxd4 {[%emt 0:00:06]} e5 {[%emt 0:04:08]} (18... a4 $5) 19. d5 {[%emt 0:17:21]} Nd4 {[%emt 0:00:51] [#]} 20. Nb3 $1 {[%emt 0:01:06]} Rb4 {[%emt 0:06:15]} (20... Ba6 21. Rfb1) 21. Nxd4 {[%emt 0:08:59]} Rxd4 {[%emt 0:00:04]} 22. Qc3 {[%emt 0:00:23]} Ba6 {[%emt 0:01:55]} 23. Rfc1 {[%emt 0:00:35]} Ng8 {[%emt 0:15:30]} 24. Qc6 {[%emt 0:10:02]} Bd3 {[%emt 0:00:38]} 25. Nc4 {[%emt 0:01:17]} Ne7 {[%emt 0:09:33]} 26. Qa6 {[%emt 0:04:01]} Qb8 {[%emt 0:02:01]} (26... Kg8 $15) 27. Qxd6 $11 {[%emt 0:01:21]} Rxc4 {[%emt 0:01:17]} 28. Qxe7 {[%emt 0:00:05] Strongly threatening Rxc4.} Qb2 {[%emt 0:00:34]} 29. Re1 {[%emt 0:01:32]} Rc2 {[%emt 0:00:23]} 30. Qa7 {[%emt 0:00:01][%cal Oa1d1]} Rfc8 {[%emt 0:00:56] aiming for ...R8c5.} 31. d6 $2 {[%emt 0:00:46][%mdl 8192]} (31. Rab1 $11 {and White has nothing to worry.} Qc3 32. Bf1) 31... Rd8 $2 {[%emt 0:00:52]} ({Better is} 31... R8c5 $19 {[%cal Oc2f2] ( -> ...Rxf2!)} 32. Rad1 Rxf2) 32. Rab1 $1 {[%emt 0:00:29]} (32. Qxa5 $2 Rxf2 (32... Rxd6 $2 33. Rab1 $19) 33. Bh1 Qd4 $19 (33... Rxd6 $2 34. Qa7 $19)) 32... Qxa2 {[%emt 0:00:09]} 33. Ra1 {[%emt 0:00:43]} Qe6 {[%emt 0:00:16]} 34. Rec1 {[%emt 0:00:33]} Rxc1+ {[%emt 0:00:51]} (34... Qxd6 35. Rxc2 Bxc2 36. Qxa5 $15) (34... Rxd6 {simplifies} 35. Rxc2 Bxc2 36. Qxa5 Rd4) 35. Rxc1 {[%emt 0:00:04]} Rxd6 {[%emt 0:00:08] With the idea ...Ba6.} 36. Qxa5 {[%emt 0:00:08]} Rd4 {[%emt 0:00:55]} 37. Re1 {[%emt 0:01:20]} Qd6 {[%emt 0:00:43]} 38. h3 {[%emt 0:00:28]} Bc4 {[%emt 0:00:22]} 39. Qc3 {[%emt 0:00:34]} Be6 {[%emt 0:00:32]} 40. Kh2 {[%emt 0:00:29]} Rd2 {[%emt 0:00:27]} 41. f4 {[%emt 0:08:47]} Qd4 {[%emt 0:07:17]} 42. Re3 {[%emt 0:16:19]} Bc4 {[%emt 0:02:53]} 43. Kh1 $2 {[%emt 0:05:12][%mdl 8192]} (43. Kg1 $1 $15) 43... Rb2 $2 {[%emt 0:16:01]} (43... Rd1+ $1 $19 44. Kh2 Bd3) 44. fxe5 $17 {[%emt 0:01:45]} Rb1+ $1 {[%emt 0:00:22]} 45. Kh2 {[%emt 0:00:08] [#]} Qd1 {[%emt 0:00:34][%csl Gb1][%cal Rd1g1]} 46. e6+ {[%emt 0:00:31]} (46. Qxc4 $2 Qg1#) 46... f6 {[%emt 0:04:29][%csl Gb1][%cal Rd1g1]} 47. g4 {[%emt 0:00:32] [#] Hoping for g5.} Qg1+ $1 {[%emt 0:00:33]} ({Reject} 47... Bxe6 48. g5 Kg8 49. Rd3 (49. gxf6 h5 $11) 49... Qg1+ 50. Kg3 $11) (47... Rc1 48. Qa3 Bxe6 (48... Qg1+ 49. Kg3 $11) 49. e5 $11) 48. Kg3 {[%emt 0:00:03] Really sharp!} Bxe6 {[%emt 0:01:58]} (48... Rb3 $17 {[%cal Ob3c3]} 49. Qxb3 Bxb3 50. Rxb3 Kf8 51. Rb8+ Ke7 52. Rb7+ Kxe6 53. Rxh7 Qb6) 49. Rf3 $11 {[%emt 0:01:16] The position is equal.} Qe1+ {[%emt 0:00:17]} 50. Qxe1 {[%emt 0:00:09]} Rxe1 {[%emt 0:00:01][%mdl 4096] Endgame. KRB-KRB} 51. Rc3 {[%emt 0:00:43]} Rd1 {[%emt 0:01:14]} 52. Re3 {[%emt 0:00:33]} Kf7 {[%emt 0:00:29]} 53. Bf3 {[%emt 0:00:37]} Rb1 {[%emt 0:00:32]} 54. Rc3 {[%emt 0:01:06]} Rb7 {[%emt 0:00:36]} 55. e5 {[%emt 0:00:00]} Re7 {[%emt 0:00:08]} 56. exf6 {[%emt 0:00:00] Weighted Error Value: White=0.31/Black=0.32.  Loses game:     	White=2     	---        Missed win:     	---       	Black=2      Mistake:       	---       	Black=2      Inaccurate:     	White=5     	Black=1      OK:         	White=14    	Black=12     Best:        	White=5     	Black=2      Strong:       	White=1     	Black=2} 1/2-1/2

[Event "Frauenbundesliga 2024-25"]
[Site "Germany"]
[Date "2024.11.16"]
[Round "1.6"]
[White "Papp, Petra"]
[Black "Rath, Alina"]
[Result "1/2-1/2"]
[Annotator "RC"]
[ECO "D02"]
[WhiteElo "2239"]
[BlackElo "2025"]
[PlyCount "101"]
[EventDate "2024.11.06"]
[EventType "team-tourn"]
[EventCountry "GER"]
[SourceTitle "playchess.com"]
[Source "ChessBase"]
[SourceQuality "1"]
[TimeControl "40/5400+30:1800+30"]

1. d4 {[%emt 0:00:36]} d5 {[%emt 0:00:06]} 2. Nf3 {[%emt 0:00:07]} e6 {[%emt 0:00:20]} 3. Bf4 {[%emt 0:01:41]} c5 {[%emt 0:01:13]} 4. c3 {[%emt 0:01:51]} Bd6 {[%emt 0:03:45]} 5. e3 {[%emt 0:01:35]} Qc7 {[%emt 0:03:13]} 6. Bxd6 {[%emt 0:07:08]} Qxd6 {[%emt 0:00:12]} 7. Ne5 {[%emt 0:00:09]} Nf6 {[%emt 0:01:31]} 8. Bd3 {[%emt 0:01:52]} O-O {[%emt 0:02:07]} 9. Nd2 {[%emt 0:02:52]} Nbd7 {[%emt 0:02:27]} 10. f4 {[%emt 0:01:39]} Rb8 {[%emt 0:07:51]} 11. a4 {[%emt 0:05:41]} b6 {[%emt 0:11:00]} 12. O-O {[%emt 0:03:32]} Bb7 {[%emt 0:00:19]} 13. Qf3 {[%emt 0:00:17]} g6 {[%emt 0:04:24]} 14. g4 {[%emt 0:03:56]} Ne8 {[%emt 0:11:02]} 15. Qg3 {[%emt 0:05:02]} f5 {[%emt 0:02:03]} 16. g5 {[%emt 0:03:39]} Nxe5 {[%emt 0:06:45]} 17. fxe5 {[%emt 0:00:28]} Qc7 {[%emt 0:00:11]} 18. Nb1 {[%emt 0:16:25]} c4 {[%emt 0:03:01]} 19. Be2 {[%emt 0:02:44]} Bc6 {[%emt 0:00:23]} 20. h4 {[%emt 0:09:40]} Ng7 {[%emt 0:01:03]} 21. Nd2 {[%emt 0:03:45]} b5 {[%emt 0:02:34]} 22. axb5 {[%emt 0:00:53]} Bxb5 {[%emt 0:00:09]} 23. Ra2 {[%emt 0:00:40]} Rb7 {[%emt 0:01:28]} 24. Rfa1 {[%emt 0:00:22]} Rfb8 {[%emt 0:00:27]} 25. Qe1 {[%emt 0:00:27]} Bc6 {[%emt 0:02:44]} 26. Qc1 {[%emt 0:00:58]} Ne8 {[%emt 0:03:23]} 27. Bf3 {[%emt 0:01:13]} Ra8 {[%emt 0:02:09]} 28. Bg2 {[%emt 0:02:04]} a5 {[%emt 0:01:17]} 29. Nf1 {[%emt 0:01:42]} a4 {[%emt 0:01:03]} 30. Ng3 {[%emt 0:00:08]} Rb6 {[%emt 0:03:51]} 31. Ne2 {[%emt 0:00:11]} Qe7 {[%emt 0:01:33]} 32. Nf4 {[%emt 0:01:04]} Kf7 {[%emt 0:02:06]} 33. Bf3 {[%emt 0:00:52]} h6 {[%emt 0:03:51]} 34. Kf2 {[%emt 0:05:57]} Ng7 {[%emt 0:06:19]} 35. Nh3 {[%emt 0:05:26]} h5 {[%emt 0:00:18]} 36. Nf4 {[%emt 0:00:27]} Qd7 {[%emt 0:02:13]} 37. Bd1 {[%emt 0:00:50]} Rbb8 {[%emt 0:04:05]} 38. Kg3 {[%emt 0:00:56]} Rb6 {[%emt 0:02:23]} 39. Bc2 {[%emt 0:00:30]} Rba6 {[%emt 0:02:27]} 40. Qd1 {[%emt 0:01:26]} Bb5 {[%emt 0:00:55]} 41. Ra3 {[%emt 0:33:41]} R8a7 {[%emt 0:04:34]} 42. Ne2 {[%emt 0:00:00]} Ne8 {[%emt 0:02:09]} 43. Kf2 {[%emt 0:00:00]} Nc7 {[%emt 0:04:27]} 44. Nf4 {[%emt 0:00:00]} Qe8 {[%emt 0:01:39]} 45. Qd2 {[%emt 0:00:00]} Na8 {[%emt 0:01:47]} 46. Rg1 {[%emt 0:00:00]} Qh8 {[%emt 0:01:44]} 47. Bd1 {[%emt 0:00:00]} Be8 {[%emt 0:01:37]} 48. Bf3 {[%emt 0:00:00]} Nc7 {[%emt 0:04:05]} 49. Rga1 {[%emt 0:00:00]} Kg7 {[%emt 0:00:41]} 50. Bd1 {[%emt 0:00:00]} Bd7 {[%emt 0:00:57]} 51. Kg3 {[%emt 0:00:00]} 1/2-1/2

[Event "Frauenbundesliga 2024-25"]
[Site "Germany"]
[Date "2024.11.16"]
[Round "1.6"]
[White "Rosmait, Emily"]
[Black "Stangl, Anita"]
[Result "1-0"]
[Annotator "NA RC"]
[ECO "C06"]
[WhiteElo "1954"]
[BlackElo "2048"]
[PlyCount "155"]
[EventDate "2024.11.06"]
[EventType "team-tourn"]
[EventCountry "GER"]
[SourceTitle "playchess.com"]
[Source "ChessBase"]
[SourceQuality "1"]
[TimeControl "40/5400+30:1800+30"]

1. e4 {[%emt 0:00:03]} e6 {[%emt 0:00:05]} 2. d4 {[%emt 0:00:04]} d5 {[%emt 0:00:05]} 3. Nd2 {[%emt 0:00:09]} Nf6 {[%emt 0:00:13]} 4. e5 {[%emt 0:00:17]} Nfd7 {[%emt 0:00:11]} 5. Bd3 {[%emt 0:00:24]} c5 {[%emt 0:00:29]} 6. c3 {[%emt 0:00:06]} Nc6 {[%emt 0:00:48]} 7. Ne2 {[%emt 0:00:15]} Qb6 {[%emt 0:01:45]} 8. Nf3 {[%emt 0:00:19]} cxd4 {[%emt 0:01:56]} 9. cxd4 {[%emt 0:00:07]} f6 {[%emt 0:00:44]} 10. exf6 {[%emt 0:00:07]} Nxf6 {[%emt 0:00:07]} 11. O-O {[%emt 0:00:14]} Bd6 {[%emt 0:01:48]} 12. b3 {[%emt 0:02:11]} O-O {[%emt 0:02:10]} 13. Bb2 {[%emt 0:04:52]} Bd7 {[%emt 0:02:24]} 14. Rc1 {[%emt 0:04:02]} Rae8 {[%emt 0:09:20]} 15. Bb1 {[%emt 0:08:48]} Re7 {[%emt 0:07:09]} 16. h3 {[%emt 0:04:51]} Be8 {[%emt 0:07:11]} 17. Ne5 {[%emt 0:05:23]} Bxe5 {[%emt 0:04:18]} 18. dxe5 {[%emt 0:00:06]} Nd7 {[%emt 0:02:09]} 19. Ba3 {[%emt 0:04:42]} Nb4 {[%emt 0:06:23]} 20. Qd4 {[%emt 0:07:35]} a5 {[%emt 0:04:20]} 21. Bxh7+ {[%emt 0:14:21]} Kh8 {[%emt 0:00:23]} 22. Qxb6 {[%emt 0:07:24]} Nxb6 {[%emt 0:00:43]} 23. Bb1 {[%emt 0:00:11]} Bb5 {[%emt 0:13:21]} 24. Rfe1 {[%emt 0:01:26]} Ref7 {[%emt 0:15:01]} 25. f3 {[%emt 0:01:40]} Rc8 {[%emt 0:07:05]} 26. Rxc8+ {[%emt 0:05:45]} Nxc8 {[%emt 0:00:20]} 27. Nd4 {[%emt 0:06:52]} Bd7 {[%emt 0:02:00]} 28. Bc1 {[%emt 0:02:47]} Ne7 {[%emt 0:03:01]} 29. f4 {[%emt 0:02:43]} Nbc6 {[%emt 0:01:33]} 30. Nf3 {[%emt 0:03:45]} Rf8 {[%emt 0:02:43]} 31. Ng5 {[%emt 0:02:35]} Ra8 {[%emt 0:01:32]} 32. Nf7+ {[%emt 0:03:13]} Kg8 {[%emt 0:00:27]} 33. Nd6 {[%emt 0:00:05]} b6 {[%emt 0:00:46]} 34. Bd2 {[%emt 0:04:05]} g6 {[%emt 0:00:33]} 35. g4 {[%emt 0:01:24]} Kg7 {[%emt 0:00:51]} 36. Kg2 {[%emt 0:03:04]} Rf8 {[%emt 0:00:10]} 37. Kg3 {[%emt 0:01:24]} Nc8 {[%emt 0:01:39]} 38. Nxc8 {[%emt 0:00:49]} Rxc8 {[%emt 0:00:22]} 39. f5 {[%emt 0:00:47]} gxf5 {[%emt 0:00:26]} 40. gxf5 {[%emt 0:00:27]} exf5 {[%emt 0:02:49]} 41. e6 {[%emt 0:30:47]} Be8 {[%emt 0:30:14]} 42. Bxf5 {[%emt 0:00:48]} Nd4 {[%emt 0:00:00]} 43. Bd3 {[%emt 0:00:00]} Kf6 {[%emt 0:00:00]} 44. e7 {[%emt 0:00:00]} Ne6 {[%emt 0:00:00]} 45. b4 {[%emt 0:00:00]} a4 {[%emt 0:00:00]} 46. h4 {[%emt 0:00:00]} Kxe7 {[%emt 0:00:00]} 47. Bg5+ {[%emt 0:00:00]} Kd6 {[%emt 0:00:00]} 48. Bf6 {[%emt 0:00:00]} Bh5 {[%emt 0:00:00]} 49. Be5+ {[%emt 0:00:00]} Ke7 {[%emt 0:00:00]} 50. Kh2 {[%emt 0:00:00]} Rf8 {[%emt 0:00:00]} 51. Bg3 {[%emt 0:00:00]} Bg4 {[%emt 0:00:00]} 52. Bb5 {[%emt 0:00:00]} a3 {[%emt 0:00:00]} 53. Re5 {[%emt 0:00:00]} Rf5 {[%emt 0:00:00]} 54. Re3 {[%emt 0:00:00]} Rf3 {[%emt 0:00:00]} 55. Re1 {[%emt 0:01:37]} Rc3 {[%emt 0:00:23]} 56. Be5 {[%emt 0:01:06]} Rc2+ {[%emt 0:01:04]} 57. Kg3 {[%emt 0:00:03]} Bh5 {[%emt 0:01:32]} 58. Re3 {[%emt 0:02:28]} Rxa2 {[%emt 0:01:34]} 59. Bc6 {[%emt 0:01:52]} Rd2 {[%emt 0:03:11]} 60. Rxa3 {[%emt 0:00:27]} Nd8 {[%emt 0:00:37]} 61. Bb5 {[%emt 0:00:49]} Ke6 {[%emt 0:00:15]} 62. Bc7 {[%emt 0:00:44]} Nf7 {[%emt 0:01:09]} 63. Re3+ {[%emt 0:00:40]} Kf6 {[%emt 0:00:25]} 64. Bxb6 {[%emt 0:00:44]} Nd6 {[%emt 0:00:36]} 65. Bd8+ {[%emt 0:00:28]} Kf7 {[%emt 0:01:47]} 66. Bd3 {[%emt 0:00:47]} d4 {[%emt 0:00:30]} 67. Re7+ {[%emt 0:00:21]} Kf8 {[%emt 0:00:12]} 68. Bh7 {[%emt 0:00:46]} Nf7 {[%emt 0:00:22]} 69. Rd7 {[%emt 0:00:32]} Ne5 {[%emt 0:01:13]} 70. Rd5 {[%emt 0:00:21]} Re2 {[%emt 0:01:03]} 71. Rxd4 {[%emt 0:00:44]} Nc6 {[%emt 0:00:00]} 72. Rd3 {[%emt 0:00:29]} Nxb4 {[%emt 0:00:05]} 73. Rb3 {[%emt 0:00:18]} Nc6 {[%emt 0:00:35]} 74. Bg5 {[%emt 0:00:19]} Nd4 {[%emt 0:00:51]} 75. Rd3 {[%emt 0:00:45]} Ne6 {[%emt 0:00:10]} 76. Bh6+ {[%emt 0:00:39]} Ke7 {[%emt 0:00:35]} 77. Bf5 {[%emt 0:00:27]} Kf6 {[%emt 0:00:39]} 78. Bg4 {[%emt 0:00:32]} 1-0

[Event "Frauenbundesliga 2024-25"]
[Site "Germany"]
[Date "2024.11.16"]
[Round "1.7"]
[White "Paehtz, Elisabeth"]
[Black "Roebers, Eline"]
[Result "1/2-1/2"]
[Annotator "TA"]
[ECO "B30"]
[WhiteElo "2456"]
[BlackElo "2348"]
[PlyCount "55"]
[EventDate "2024.11.06"]
[EventType "team-tourn"]
[EventCountry "GER"]
[SourceTitle "playchess.com"]
[Source "ChessBase"]
[SourceQuality "1"]
[TimeControl "40/5400+30:1800+30"]

{[%evp 13,55,27,34,14,26,12,4,10,21,15,51,48,81,83,74,76,75,37,122,16,13,20,10,10,9,16,8,16,12,4,8,3,29,11,9,4,10,12,8,0,3,0,11,0]} 1. e4 {[%emt 0:00:02]} c5 {[%emt 0:00:03]} 2. Nf3 {[%emt 0:00:03]} Nc6 {[%emt 0:00:03]} 3. Bb5 {[%emt 0:00:05]} e5 {[%emt 0:00:03]} 4. O-O {[%emt 0:00:12]} Nge7 {[%emt 0:00:09]} 5. c3 {[%emt 0:01:45]} g6 {[%emt 0:00:03]} 6. d4 {[%emt 0:05:43]} cxd4 {[%emt 0:00:17]} 7. cxd4 {[%emt 0:00:03]} exd4 {[%emt 0:00:05]} 8. Nxd4 {[%emt 0:00:27]} Bg7 {[%emt 0:00:04]} 9. Ne2 {[%emt 0:00:20]} d5 {[%emt 0:01:49]} 10. exd5 {[%emt 0:00:09]} Qxd5 {[%emt 0:00:21]} 11. Qa4 {[%emt 0:03:55]} a6 {[%emt 0:09:02]} 12. Nbc3 {[%emt 0:00:53]} Qd8 {[%emt 0:03:11]} 13. Rd1 {[%emt 0:05:57]} Bd7 {[%emt 0:01:42]} 14. Bxc6 {[%emt 0:03:52]} Nxc6 {[%emt 0:00:09]} 15. Qb3 {[%emt 0:07:30] White is more active.} b5 {[%emt 0:15:04]} (15... O-O $14) 16. Ne4 {[%emt 0:13:47]} (16. Qd5 $16 {aiming for Bg5.} Ne7 17. Qe4) 16... Be6 $1 $11 {[%emt 0:02:36][%cal Bd7e6,Be6b3,Bb3c4][%mdl 32] A strong pair of Bishops.} 17. Rxd8+ {[%emt 0:08:19]} Rxd8 {[%emt 0:00:05] [#]} 18. Bh6 $1 {[%emt 0:00:03]} Bxb3 {[%emt 0:04:46]} 19. Bxg7 {[%emt 0:00:09]} Bc4 {[%emt 0:00:46]} 20. Bxh8 {[%emt 0:20:38]} Bxe2 {[%emt 0:00:13]} 21. f3 {[%emt 0:06:59]} f5 {[%emt 0:05:34]} 22. Ng5 {[%emt 0:04:36]} Ke7 {[%emt 0:06:01] Inhibits Bf6+.} 23. Re1 {[%emt 0:01:43]} Rxh8 {[%emt 0:01:47] The position is equal.} 24. Rxe2+ {[%emt 0:00:04]} Kd7 {[%emt 0:00:06]} 25. Rd2+ {[%emt 0:00:43]} Ke7 {[%emt 0:00:20]} 26. Re2+ {[%emt 0:02:38]} Kd7 {[%emt 0:00:27]} 27. Rd2+ {[%emt 0:00:28]} Ke7 {[%emt 0:00:06]} 28. Re2+ {[%emt 0:01:33] Weighted Error Value: White=0.16 (very precise) /Black=0.12 (very precise) .  Mistake:       	White=1     	Black=1      Inaccurate:     	White=1     	Black=3      OK:         	White=9     	Black=7      Best:        	White=1     	Black=5      Strong:       	---       	Black=1      Brilliant:      	White=1     	---} 1/2-1/2